bitfinex/quotes_ETHUSD_20240730
["timestamp","ask_amount","ask_price","bid_price","bid_amount"]
[1722334581437,2.99441,3339.6,3339.2,0.11446816]
[1722334581643,2.99441,3339.6,3339.2,35.11446816]
[1722334581985,2.99441,3339.6,3339.3,0.11446816]
[1722334582189,2.99446,3339.5,3339.3,0.11446816]
[1722334582391,2.99441,3339.6,3339.0,2.99485]
[1722334582544,2.99441,3339.6,3339.4,0.11264032]
[1722334582745,2.99441,3339.6,3339.1,2.99479]
[1722334583097,5.98922,3339.4,3339.2,0.11264032]
[1722334583260,1.579614,3339.6,3339.2,0.11264032]
[1722334583261,2.99446,3339.5,3339.2,0.11264032]
[1722334583460,2.99446,3339.5,3338.9,2.99495]
[1722334583461,4.573984,3339.6,3339.1,2.99479]
[1722334583690,2.99437,3339.6,3339.1,2.99479]
[1722334583897,5.35375,3339.8,3338.4,35.0]
[1722334583898,0.55,3339.5,3338.4,35.0]
[1722334584059,2.99449,3339.5,3338.8,2.99503]
[1722334584246,3.54431,3339.7,3338.9,2.99496]
[1722334584444,2.99452,3339.5,3338.9,2.99497]
[1722334584672,2.99452,3339.5,3338.7,2.99512]
[1722334584989,3.54459,3339.4,3338.9,2.99495]
[1722334585142,2.99459,3339.4,3338.9,2.99495]
[1722334586792,0.55,3339.7,3339.2,2.99467]
[1722334586952,0.55,3339.7,3339.2,5.98934]
[1722334587154,0.55,3339.7,3338.4,35.0]
[1722334587155,0.148,3339.9,3339.5,2.99445]
[1722334587545,0.148,3339.9,3339.4,2.99454]
[1722334587783,0.148,3339.9,3339.3,2.99462]
[1722334587984,0.148,3339.9,3339.5,2.99438]
[1722334588388,0.148,3339.9,3339.5,3.32534847]
[1722334588593,0.148,3339.9,3339.7,2.99426]
[1722334588751,0.148,3339.9,3339.8,2.99419]
[1722334590486,0.148,3339.9,3339.8,5.98838]
[1722334590691,0.148,3339.9,3339.8,6.10077537]
[1722334591797,0.148,3339.9,3339.8,3.10658537]
[1722334592766,0.148,3339.9,3339.8,6.10077537]
[1722334592961,0.148,3339.9,3339.8,3.10658537]
[1722334593966,0.148,3339.9,3339.8,0.11239537]
[1722334594400,0.148,3339.9,3339.8,2.99419]
[1722334594609,0.148,3339.9,3339.8,6.10004485]
[1722334595532,0.148,3339.9,3339.8,6.43101332]
[1722334595952,0.148,3339.9,3339.8,9.42520332]
[1722334596177,0.148,3339.9,3339.8,20.11019332]
[1722334596381,0.148,3339.9,3339.8,19.77922485]
[1722334596810,0.148,3339.9,3339.8,20.07952485]
[1722334597014,0.00205325,3339.9,3339.8,24.11531945]
[1722334597319,0.00205325,3339.9,3339.8,59.11531945]
[1722334597320,3.25e-06,3339.9,3339.8,59.11531945]
[1722334597526,3.25e-06,3339.9,3339.8,58.07371485]
[1722334598514,7.3,3341.8,3341.1,2.993]
[1722334598853,0.9581,3341.7,3341.2,0.11128263]
[1722334599058,3.95063,3341.7,3341.2,0.11128263]
[1722334599217,2.99271,3341.5,3341.2,0.11128263]
[1722334599557,2.99291,3341.3,3340.8,2.99329]
[1722334600059,2.99291,3341.3,3341.2,0.33097229]
[1722334600262,0.55,3341.3,3341.2,0.33097229]
[1722334600435,2.99266,3341.5,3341.0,2.99306]
[1722334600630,2.99266,3341.5,3341.1,35.0]
[1722334601071,2.99285,3341.3,3341.1,35.0]
[1722334601253,0.9581,3341.7,3341.1,35.0]
[1722334601450,2.99293,3341.2,3340.7,2.99335]
[1722334601834,2.99284,3341.3,3340.8,35.0]
[1722334602041,2.99284,3341.3,3340.5,2.99355]
[1722334602042,2.99311,3341.0,3340.5,2.99355]
[1722334602370,2.281,3341.3,3340.2,3.0]
[1722334602371,2.99303,3341.1,3340.2,3.0]
[1722334602569,2.99303,3341.1,3340.5,2.99352]
[1722334603065,2.99303,3341.1,3340.3,35.0]
[1722334603066,0.881702,3341.1,3340.3,35.0]
[1722334603369,0.881702,3341.1,3340.2,2.99377]
[1722334603370,5.98671,3340.8,3340.2,2.99377]
[1722334603572,2.99333,3340.8,3340.3,2.99367]
[1722334603878,2.99325,3340.9,3340.4,2.99364]
[1722334604169,2.99325,3340.9,3340.3,2.99373]
[1722334604378,2.99331,3340.8,3340.3,2.99373]
[1722334605677,2.9932,3340.9,3340.4,3.10446468]
[1722334605822,5.98648,3340.9,3340.4,0.11087468]
[1722334606160,2.9932,3340.9,3340.4,0.11087468]
[1722334606479,0.55,3341.0,3340.4,0.11087468]
[1722334606638,2.99345,3340.7,3340.2,37.99377]
[1722334606838,2.99345,3340.7,3340.5,0.11096485]
[1722334607144,2.99359,3340.5,3340.0,2.99398]
[1722334607361,2.99359,3340.5,3340.1,3.0]
[1722334607533,2.99359,3340.5,3340.0,3.0]
[1722334607735,2.99359,3340.5,3339.9,35.0]
[1722334607736,2.99378,3340.3,3339.9,35.0]
[1722334607932,2.99378,3340.3,3339.4,0.3003]
[1722334607933,2.99396,3340.1,3339.4,0.3003]
[1722334608232,2.99405,3340.0,3339.5,2.99445]
[1722334608467,2.99405,3340.0,3339.5,5.98885]
[1722334608711,2.99405,3340.0,3339.5,2.9944]
[1722334609005,2.99405,3340.0,3339.4,35.0]
[1722334609211,2.99405,3340.0,3339.4,5.989]
[1722334609358,2.99405,3340.0,3339.4,2.99446]
[1722334609703,2.4406,3340.3,3339.5,35.0]
[1722334610001,2.9936,3340.5,3339.9,2.99409]
[1722334610301,2.99374,3340.3,3339.8,2.99415]
[1722334610458,0.55,3340.6,3339.5,35.0]
[1722334610658,2.99365,3340.4,3339.9,2.99404]
[1722334611096,3.54378,3340.3,3339.6,2.99432]
[1722334611295,2.99397,3340.1,3339.6,2.99432]
[1722334611472,2.99383,3340.2,3339.7,2.99419]
[1722334612171,2.99374,3340.3,3339.8,2.99418]
[1722334612431,5.98754,3340.3,3339.8,2.99418]
[1722334612697,2.99384,3340.2,3339.8,2.99418]
[1722334613600,2.99412,3339.9,3339.5,35.0]
[1722334613975,2.99419,3339.8,3339.5,35.0]
[1722334614376,2.99437,3339.6,3339.5,35.0]
[1722334614616,2.9945,3339.5,3339.0,2.99486]
[1722334614817,2.99437,3339.6,3339.0,2.99485]
[1722334615101,2.263,3340.0,3339.1,35.0]
[1722334615102,2.99446,3339.5,3339.1,35.0]
[1722334615796,2.99437,3339.6,3339.1,37.99474]
[1722334616229,2.99429,3339.7,3339.2,2.9947]
[1722334616439,2.99419,3339.8,3339.3,2.99459]
[1722334616799,2.99412,3339.9,3339.4,2.99448]
[1722334617204,2.99412,3339.9,3339.1,35.0]
[1722334617205,2.99379,3340.3,3339.2,0.05988937]
[1722334617424,2.99401,3340.0,3339.3,2.99463]
[1722334617729,0.55,3340.2,3339.1,37.99481]
[1722334617730,2.99425,3339.8,3339.1,37.99481]
[1722334617929,2.99441,3339.6,3339.1,37.99481]
[1722334618099,0.55,3339.5,3338.9,2.99495]
[1722334618299,0.55,3339.5,3339.1,2.99476]
[1722334619639,2.3577,3339.6,3339.1,2.99476]
[1722334619819,2.99451,3339.5,3338.8,2.99507]
[1722334620019,2.99455,3339.4,3339.0,2.99489]
[1722334620218,2.99446,3339.5,3339.0,5.98975]
[1722334620434,5.35209,3339.6,3339.0,2.99486]
[1722334620647,0.3577,3339.6,3339.1,0.11129118]
[1722334620851,2.99411,3339.9,3339.3,2.99458]
[1722334621002,0.55,3339.8,3339.3,2.99458]
[1722334621204,3.54421,3339.8,3339.3,2.99463]
[1722334621545,3.54419,3339.8,3339.3,2.99462]
[1722334621705,0.55,3339.8,3339.4,0.11129118]
[1722334621900,0.55,3339.8,3339.4,3.10583118]
[1722334622138,0.55,3339.8,3339.4,2.99454]
[1722334622313,3.54424,3339.8,3339.5,0.11129118]
[1722334622509,2.99428,3339.7,3339.5,0.11129118]
[1722334622708,2.99428,3339.7,3339.2,2.99464]
[1722334622709,3.898664,3339.8,3339.2,2.99464]
[1722334622912,2.99429,3339.7,3339.6,0.11129118]
[1722334623115,2.99429,3339.7,3339.2,2.99464]
[1722334623309,2.99429,3339.7,3339.6,0.11129118]
[1722334623544,2.99429,3339.7,3339.2,2.99464]
[1722334623761,0.55,3339.8,3339.6,0.11129118]
[1722334623931,0.55,3339.9,3339.3,2.99463]
[1722334624126,3.5441,3339.9,3339.7,0.11129118]
[1722334624373,2.99419,3339.8,3339.7,0.44228329]
[1722334624666,3.54419,3339.8,3339.7,0.44228329]
[1722334625570,0.55,3339.8,3339.7,0.44228329]
[1722334625867,2.99404,3340.0,3339.7,0.44228329]
[1722334626072,2.9941,3339.9,3339.7,0.44228329]
[1722334626275,2.99419,3339.8,3339.7,0.44228329]
[1722334626432,2.99408,3340.0,3339.7,0.11129118]
[1722334626633,2.99408,3340.0,3339.4,2.99452]
[1722334626863,2.99408,3340.0,3339.8,0.11187535]
[1722334627031,6.3674949,3340.1,3339.8,0.11187535]
[1722334627235,0.55,3340.0,3339.7,2.99422]
[1722334627568,3.54383,3340.2,3339.9,0.11187106]
[1722334627780,5.2291939,3340.2,3339.8,0.33107879]
[1722334628081,2.9941,3339.9,3339.8,0.33107879]
[1722334628284,2.99405,3340.0,3339.8,0.33107879]
[1722334628955,2.9941,3339.9,3339.8,0.33107879]
[1722334629156,5.9882,3339.9,3339.8,0.33107879]
[1722334629394,12.10905339,3339.9,3339.8,0.33107879]
[1722334629673,12.10905339,3339.9,3338.1,2.3355]
[1722334629674,2.99522,3338.7,3338.1,2.3355]
[1722334629874,2.99522,3338.7,3338.1,2.99571]
[1722334630178,2.99515,3338.8,3338.2,0.10440745]
[1722334630392,2.99531,3338.6,3338.2,0.10440745]
[1722334630668,2.99551,3338.4,3338.2,0.10440745]
[1722334630889,2.99537,3338.5,3338.0,2.99575]
[1722334631182,2.99544,3338.4,3338.3,0.10460511]
[1722334631587,2.99544,3338.4,3337.9,37.99582]
[1722334631941,2.99554,3338.3,3338.0,0.10460511]
[1722334632214,2.99563,3338.2,3338.0,0.10460511]
[1722334632414,2.2761,3339.0,3338.0,0.10460511]
[1722334632415,0.55,3338.8,3338.0,0.10460511]
[1722334632584,2.99571,3338.1,3337.6,2.9961]
[1722334632791,2.99571,3338.1,3337.7,0.10497908]
[1722334632975,2.99561,3338.3,3337.7,35.10497908]
[1722334633175,2.99561,3338.3,3337.7,38.10104908]
[1722334634030,0.55,3338.8,3337.7,35.10497908]
[1722334634241,0.55,3338.8,3337.8,2.99592]
[1722334634242,2.99555,3338.3,3337.8,2.99592]
[1722334634526,3.709,3338.8,3337.7,0.10497908]
[1722334634709,0.55,3338.2,3337.9,0.10501348]
[1722334634877,2.9955,3338.4,3337.8,2.99593]
[1722334635103,2.99531,3338.6,3337.2,3.0]
[1722334635104,2.99531,3338.6,3338.1,2.99571]
[1722334635305,5.27104,3339.0,3337.9,37.4813]
[1722334635534,2.99527,3338.6,3338.1,2.99566]
[1722334635715,5.99061,3338.6,3338.1,2.99566]
[1722334635919,2.99558,3338.3,3337.9,35.0]
[1722334636163,2.99553,3338.3,3338.2,0.10499198]
[1722334636306,2.99553,3338.3,3337.9,35.0]
[1722334636510,2.99553,3338.3,3338.2,0.10495758]
[1722334636713,2.99553,3338.3,3337.7,2.99605]
[1722334637056,2.99553,3338.3,3337.8,0.10495758]
[1722334637280,2.99553,3338.3,3337.8,35.10495758]
[1722334637572,2.99578,3338.1,3337.8,35.10495758]
[1722334637842,2.99582,3338.0,3337.8,35.10495758]
[1722334638054,2.99582,3338.0,3337.8,0.10495758]
[1722334638055,2.99589,3337.9,3337.8,0.10495758]
[1722334638401,2.99589,3337.9,3337.4,2.99633]
[1722334638606,2.99621,3337.6,3337.0,2.99664]
[1722334638809,2.99621,3337.6,3337.0,2.99663]
[1722334639014,2.99607,3337.7,3337.1,35.10570118]
[1722334639214,0.55,3337.8,3337.2,2.99646]
[1722334639444,2.99576,3338.1,3337.2,2.99646]
[1722334639661,2.99576,3338.1,3337.3,3.10208118]
[1722334639810,2.99594,3337.9,3337.4,2.99634]
[1722334640030,2.99559,3338.3,3337.5,0.10574418]
[1722334640210,2.99577,3338.1,3337.6,2.9961]
[1722334640410,2.99577,3338.1,3337.7,0.10580439]
[1722334641417,2.99563,3338.2,3337.5,2.99624]
[1722334641656,3.54577,3338.1,3337.6,0.10580439]
[1722334642356,2.996,3337.8,3337.6,0.10580439]
[1722334642763,2.996,3337.8,3337.3,37.99634]
[1722334642920,2.99589,3337.9,3337.7,0.10579149]
[1722334643122,2.99589,3337.9,3337.3,37.99634]
[1722334643445,2.99589,3337.9,3337.4,2.99633]
[1722334643621,2.99589,3337.9,3337.4,3.10209009]
[1722334644027,2.9958,3338.0,3337.4,3.10208009]
[1722334644234,2.9958,3338.0,3337.5,2.99624]
[1722334644549,2.9958,3338.0,3337.5,3.10205729]
[1722334644877,3.54571,3338.1,3337.5,0.10581729]
[1722334645030,2.99589,3337.9,3337.4,2.99629]
[1722334645235,2.99589,3337.9,3337.5,0.10581729]
[1722334645477,2.99589,3337.9,3337.4,2.99629]
[1722334645645,2.99589,3337.9,3337.6,0.10581729]
[1722334645846,3.54571,3338.1,3337.5,2.99624]
[1722334646046,2.99586,3338.0,3337.7,0.10581729]
[1722334646246,2.99586,3338.0,3337.5,37.99624]
[1722334646470,2.99622,3337.6,3336.9,2.99673]
[1722334646675,2.99622,3337.6,3336.7,2.2832]
[1722334646676,2.99607,3337.7,3337.1,5.99307]
[1722334646987,0.55,3337.6,3337.1,5.99307]
[1722334647197,0.55,3337.6,3337.1,2.99652]
[1722334647392,0.55,3337.6,3337.2,2.99651]
[1722334647690,2.99599,3337.8,3337.1,2.99655]
[1722334647898,2.99599,3337.8,3337.4,2.99634]
[1722334648196,2.99577,3338.1,3337.4,2.99634]
[1722334648197,0.55,3337.7,3337.4,2.99634]
[1722334648500,0.55,3337.7,3337.3,2.99641]
[1722334649458,0.55,3337.7,3337.4,2.99632]
[1722334649665,0.55,3337.8,3337.4,2.99632]
[1722334650407,2.99577,3338.1,3337.1,2.99655]
[1722334650697,0.55,3338.0,3337.6,2.99609]
[1722334651066,1.43241055,3338.0,3337.3,2.99643]
[1722334651294,2.99584,3338.0,3337.7,0.10581729]
[1722334651603,0.55,3337.9,3337.5,2.99624]
[1722334651767,0.55,3337.9,3337.8,0.10600222]
[1722334652091,0.55,3337.9,3337.5,2.99621]
[1722334652292,0.55,3338.0,3337.6,2.99616]
[1722334652450,0.55,3338.0,3337.6,0.10600222]
[1722334652652,0.55,3338.1,3337.8,2.99598]
[1722334653060,10.29549,3338.4,3337.9,0.10600222]
[1722334653249,3.063919,3338.3,3337.9,0.10600222]
[1722334653450,3.063919,3338.3,3337.6,2.99611]
[1722334653451,2.99576,3338.1,3337.6,2.99611]
[1722334653653,3.54585,3338.0,3337.4,2.99626]
[1722334653856,0.55,3338.0,3337.7,0.10600222]
[1722334654164,0.55,3338.1,3337.8,2.99595]
[1722334654382,3.54566,3338.2,3337.8,0.10600222]
[1722334654677,7.3,3338.4,3337.7,2.99601]
[1722334654678,0.55,3338.1,3337.7,2.99601]
[1722334654876,0.55,3338.1,3337.9,0.10605814]
[1722334655103,2.99554,3338.3,3337.8,2.99593]
[1722334655104,0.55,3338.2,3337.8,2.99593]
[1722334655259,0.55,3338.2,3338.0,0.10605814]
[1722334655594,3.54567,3338.2,3337.7,2.99606]
[1722334655808,3.54567,3338.2,3338.1,0.10605814]
[1722334656003,2.99573,3338.1,3337.6,2.99615]
[1722334656510,2.99573,3338.1,3337.7,0.10605814]
[1722334656711,2.99573,3338.1,3337.5,2.99621]
[1722334656868,5.99152,3338.1,3337.8,0.10605814]
[1722334657069,0.55,3338.2,3336.9,2.6763]
[1722334657291,2.99594,3337.9,3337.3,2.99635]
[1722334657819,0.55,3337.8,3337.3,2.99635]
[1722334658113,2.99617,3337.6,3337.1,2.99655]
[1722334658255,2.99617,3337.6,3337.1,5.99311]
[1722334658455,2.99617,3337.6,3337.1,2.99655]
[1722334659214,2.99608,3337.7,3337.2,2.99651]
[1722334659671,0.55,3337.8,3337.3,2.99637]
[1722334659867,2.4937,3338.5,3337.0,3.3003]
[1722334660179,2.99559,3338.3,3337.6,2.9961]
[1722334660476,2.99559,3338.3,3337.6,2.99615]
[1722334660676,2.99578,3338.1,3337.6,2.99615]
[1722334660878,2.99578,3338.1,3337.6,2.9961]
[1722334661259,2.99578,3338.1,3337.4,2.99627]
[1722334661555,2.99594,3337.9,3337.4,2.99627]
[1722334661754,5.9919,3337.9,3337.4,2.99627]
[1722334662014,2.99579,3338.1,3337.1,5.4038]
[1722334662168,2.99613,3337.7,3337.1,5.4038]
[1722334662870,5.99245,3337.6,3337.1,5.4038]
[1722334663059,2.99621,3337.6,3337.1,5.4038]
[1722334663261,2.99671,3337.0,3336.4,2.4064]
[1722334663459,2.99671,3337.0,3336.5,2.9971]
[1722334663857,5.99349,3337.0,3336.5,2.9971]
[1722334664056,2.99671,3337.0,3336.5,2.9971]
[1722334664253,2.99684,3336.9,3336.4,2.4064]
[1722334664480,2.99684,3336.9,3336.4,5.40358]
[1722334664703,2.99688,3336.8,3336.3,2.9973]
[1722334664879,2.9968,3336.9,3336.3,2.99727]
[1722334665464,2.99683,3336.9,3336.3,5.99453]
[1722334665664,2.99683,3336.9,3336.4,0.1025764]
[1722334665875,2.3367,3337.2,3336.4,0.1025764]
[1722334666103,5.9939,3336.8,3336.4,0.1025764]
[1722334666260,2.99695,3336.8,3336.4,0.1025764]
[1722334666657,2.9968,3336.9,3336.4,3.0998064]
[1722334666873,2.9967,3337.0,3336.5,2.99714]
[1722334667091,0.55,3337.1,3336.7,2.99696]
[1722334667594,2.9964,3337.4,3336.9,2.9967]
[1722334667796,3.54649,3337.3,3336.8,3.0994464]
[1722334667995,3.54649,3337.3,3336.7,2.99696]
[1722334668203,3.54649,3337.3,3336.9,0.1025764]
[1722334668385,3.54649,3337.3,3336.8,2.99686]
[1722334668592,0.55,3337.3,3337.0,0.1025764]
[1722334668979,2.99653,3337.2,3337.0,0.1025764]
[1722334669177,2.99673,3337.0,3336.5,2.99708]
[1722334669615,2.99653,3337.2,3336.4,2.99724]
[1722334669616,3.54685,3336.9,3336.4,2.99724]
[1722334669980,0.55,3336.9,3336.5,2.99714]
[1722334670225,0.55,3336.9,3336.5,2.99709]
[1722334670409,0.55,3337.0,3336.5,2.99709]
[1722334670731,0.55,3337.0,3336.5,5.99415]
[1722334670897,0.55,3337.0,3336.6,2.99704]
[1722334671100,0.55,3337.1,3336.6,2.99704]
[1722334671426,2.99662,3337.1,3336.6,2.997]
[1722334671594,0.55,3337.0,3336.3,2.99726]
[1722334671805,3.5467,3337.0,3336.5,2.99711]
[1722334672001,0.55,3337.0,3336.5,5.9942]
[1722334672199,0.55,3337.0,3336.5,2.99709]
[1722334672402,0.55,3337.1,3336.5,2.99709]
[1722334672821,0.55,3337.1,3336.7,2.99695]
[1722334673030,3.54669,3337.1,3336.5,2.99709]
[1722334673414,3.54669,3337.1,3336.6,2.99705]
[1722334673925,3.54669,3337.1,3336.6,2.997]
[1722334674746,3.54668,3337.1,3336.6,2.99699]
[1722334674914,0.55,3337.1,3336.7,2.99696]
[1722334675505,0.55,3337.1,3336.4,2.99718]
[1722334675704,2.99674,3337.0,3336.5,2.9971]
[1722334675907,0.55,3336.9,3336.7,2.99693]
[1722334676219,0.55,3337.1,3336.7,2.99693]
[1722334676415,3.54644,3337.3,3336.8,2.99687]
[1722334676616,2.99652,3337.2,3336.7,2.99696]
[1722334676836,0.55,3337.1,3336.7,2.99696]
[1722334677349,0.55,3337.1,3336.1,2.41392864]
[1722334677350,2.99643,3337.3,3336.8,2.99687]
[1722334677555,3.54643,3337.3,3336.8,2.99682]
[1722334677856,3.54643,3337.3,3336.6,2.997]
[1722334678363,1.524816,3337.3,3336.6,2.997]
[1722334678660,2.99661,3337.1,3336.7,2.99696]
[1722334678808,1.524816,3337.3,3336.7,2.99696]
[1722334678809,0.55,3337.0,3336.7,2.99696]
[1722334679007,2.99656,3337.2,3336.7,2.99696]
[1722334679211,0.55,3337.1,3336.7,2.99696]
[1722334679673,0.55,3337.2,3336.7,2.99689]
[1722334679816,2.369,3337.6,3336.9,2.99678]
[1722334679817,5.3652,3337.6,3336.9,2.99678]
[1722334680012,2.99638,3337.4,3336.9,2.99678]
[1722334680247,0.55,3337.3,3336.9,2.99678]
[1722334680655,0.55,3337.3,3337.0,3.09999783]
[1722334680960,3.93552,3337.6,3337.0,0.10330783]
[1722334680961,0.55,3337.4,3337.0,0.10330783]
[1722334681162,0.55,3337.5,3337.1,2.9966]
[1722334681544,0.55,3337.5,3337.2,0.10329922]
[1722334681778,2.3495,3337.9,3337.2,0.10329922]
[1722334681779,2.9958,3338.0,3337.2,3.09975922]
[1722334681983,7.3,3338.1,3337.3,2.3138]
[1722334682245,7.3,3338.1,3337.0,0.0599252]
[1722334682246,2.99604,3337.8,3337.1,2.99654]
[1722334682471,2.99604,3337.8,3337.2,0.10329922]
[1722334682676,9.49415,3338.1,3337.2,0.10329922]
[1722334682677,2.99626,3337.5,3337.2,0.10329922]
[1722334682909,12.48989,3338.1,3336.4,2.427]
[1722334682910,2.99642,3337.4,3336.4,2.427]
[1722334683045,2.99642,3337.4,3337.3,0.10329922]
[1722334683358,3.595684,3337.4,3337.0,2.9967]
[1722334683564,0.55,3337.3,3337.0,2.9967]
[1722334683746,0.55,3337.3,3337.1,0.10329922]
[1722334684105,0.55,3337.3,3337.0,2.99668]
[1722334684261,0.55,3337.4,3337.2,0.10329922]
[1722334684588,0.55,3337.4,3337.0,2.99668]
[1722334684884,0.55,3337.4,3337.1,0.10329922]
[1722334685263,2.99648,3337.3,3336.8,2.99687]
[1722334685464,3.54659,3337.2,3336.7,2.99696]
[1722334685778,0.55,3337.2,3336.7,2.99696]
[1722334685975,0.55,3337.2,3336.5,2.99715]
[1722334685976,2.99672,3337.0,3336.5,2.99715]
[1722334686310,3.54684,3336.9,3336.3,2.99726]
[1722334686507,3.54684,3336.9,3336.4,2.9972]
[1722334687071,3.54684,3336.9,3336.3,2.99726]
[1722334687072,2.99688,3336.8,3336.3,2.99726]
[1722334687261,0.55,3336.7,3336.3,2.99726]
[1722334688167,3.54689,3336.8,3336.4,2.99723]
[1722334688363,3.54689,3336.8,3336.3,2.99732]
[1722334689365,0.55,3336.8,3336.4,2.99723]
[1722334689566,0.55,3337.0,3336.5,2.9971]
[1722334689767,2.99674,3337.0,3336.5,2.9971]
[1722334689979,3.54679,3336.9,3336.4,2.99723]
[1722334690265,0.55,3336.9,3336.5,2.99708]
[1722334690463,0.55,3337.1,3336.6,2.99704]
[1722334690710,3.54661,3337.1,3336.6,2.99704]
[1722334690868,2.99672,3337.0,3336.5,2.99714]
[1722334691191,0.55,3336.9,3336.5,2.99714]
[1722334691711,0.55,3336.9,3336.7,2.99693]
[1722334692003,0.55,3337.1,3336.7,2.99691]
[1722334692380,2.99646,3337.3,3336.7,2.99691]
[1722334692381,0.55,3337.2,3336.7,2.99688]
[1722334692595,0.55,3337.2,3336.8,2.99682]
[1722334693191,0.55,3337.2,3336.6,2.99702]
[1722334693974,0.55,3337.2,3336.8,2.99687]
[1722334694177,0.55,3337.2,3336.6,2.997]
[1722334694178,1.438602,3337.2,3336.6,2.997]
[1722334694389,5.99333,3337.1,3336.6,2.997]
[1722334694605,0.55,3337.0,3336.6,2.997]
[1722334695274,0.55,3337.0,3336.5,2.99715]
[1722334695474,3.54674,3337.0,3336.5,2.99715]
[1722334695775,3.54674,3337.0,3336.6,0.10320884]
[1722334697115,1.2931862,3337.0,3336.6,0.10320884]
[1722334697284,2.9969,3336.8,3336.3,2.99727]
[1722334697484,0.55,3336.7,3336.3,2.99727]
[1722334697812,0.55,3336.7,3336.3,2.99732]
[1722334697973,0.55,3336.7,3336.1,0.02212864]
[1722334698522,3.54698,3336.7,3336.2,2.99738]
[1722334698667,0.55,3336.7,3336.2,2.99738]
[1722334699097,0.55,3336.7,3336.1,0.02212864]
[1722334699098,2.9971,3336.6,3336.1,0.02212864]
[1722334699305,2.99718,3336.5,3336.1,0.02212864]
[1722334699713,0.884151,3336.5,3336.1,0.02212864]
[1722334699919,2.99739,3336.3,3336.1,0.02212864]
[1722334700124,0.55,3336.2,3336.1,0.02212864]
[1722334700343,3.54742,3336.2,3336.1,0.02212864]
[1722334700539,0.55,3336.2,3336.1,0.02212864]
[1722334701601,0.55,3336.2,3336.1,5.64e-06]
[1722334702313,7.199294,3336.2,3336.1,5.64e-06]
[1722334702878,4.201874,3336.2,3336.1,5.64e-06]
[1722334703054,6.500374,3336.2,3336.1,5.64e-06]
[1722334703236,1.204454,3336.2,3336.1,5.64e-06]
[1722334703399,0.55,3336.2,3336.1,5.64e-06]
[1722334703604,0.55,3336.3,3336.1,5.64e-06]
[1722334703825,3.54734,3336.3,3336.1,0.10342105]
[1722334704107,2.99742,3336.2,3336.1,5.64e-06]
[1722334704510,0.61655586,3336.2,3336.1,5.64e-06]
[1722334705006,3.61397586,3336.2,3336.1,5.64e-06]
[1722334705747,4.27509345,3336.2,3336.1,5.64e-06]
[1722334707105,1.27767345,3336.2,3336.1,5.64e-06]
[1722334707299,0.61655586,3336.2,3336.1,5.64e-06]
[1722334708951,3.61397586,3336.2,3336.1,5.64e-06]
[1722334709748,6.61139586,3336.2,3336.1,5.64e-06]
[1722334710755,6.61139586,3336.2,3336.1,0.10367931]
[1722334711043,6.61139586,3336.2,3336.1,5.64e-06]
[1722334711214,6.61139586,3336.2,3336.1,0.10367931]
[1722334711417,6.61139586,3336.2,3336.1,5.64e-06]
[1722334711619,6.61139586,3336.2,3336.1,0.10367931]
[1722334711620,3.61397586,3336.2,3336.1,0.10367931]
[1722334711822,3.61397586,3336.2,3336.1,5.64e-06]
[1722334712019,3.61397586,3336.2,3336.1,0.10367931]
[1722334712218,3.61397586,3336.2,3336.1,5.64e-06]
[1722334712721,3.61397586,3336.2,3336.1,0.10367931]
[1722334712936,3.61397586,3336.2,3336.1,5.64e-06]
[1722334713156,7.27252645,3336.2,3336.1,0.10367931]
[1722334713312,3.61397586,3336.2,3336.1,5.64e-06]
[1722334713509,3.61397586,3336.2,3336.1,0.10367931]
[1722334713710,3.61397586,3336.2,3336.1,5.64e-06]
[1722334713911,4.27511245,3336.2,3336.1,0.10367931]
[1722334714105,4.27511245,3336.2,3336.1,5.64e-06]
[1722334714329,4.27511245,3336.2,3336.1,0.10367931]
[1722334714574,7.27253245,3336.2,3336.1,5.64e-06]
[1722334714761,7.27253245,3336.2,3336.1,0.10367931]
[1722334715574,9.54333245,3336.2,3336.1,0.10367931]
[1722334716081,6.54591245,3336.2,3336.1,5.64e-06]
[1722334716227,6.54591245,3336.2,3336.1,0.10390316]
[1722334716579,9.54333245,3336.2,3336.1,0.10390316]
[1722334716783,6.54591245,3336.2,3336.1,0.10390316]
[1722334716938,4.27511245,3336.2,3336.1,0.10390316]
[1722334717530,7.27253245,3336.2,3336.1,0.10390316]
[1722334717757,4.27511245,3336.2,3336.1,0.10390316]
[1722334719376,7.27253245,3336.2,3336.1,0.10390316]
[1722334719973,4.27511245,3336.2,3336.1,0.10390316]
[1722334721783,0.61655586,3336.2,3336.1,0.10390316]
[1722334724346,3.61397586,3336.2,3336.1,0.10390316]
[1722334724751,6.61139586,3336.2,3336.1,0.10390316]
[1722334724975,7.60339586,3336.2,3336.1,0.10390316]
[1722334725179,7.60339586,3336.2,3336.1,5.64e-06]
[1722334725379,11.88682045,3336.2,3336.1,0.10403233]
[1722334725553,11.88682045,3336.2,3336.1,5.64e-06]
[1722334726141,11.88682045,3336.2,3336.1,0.10403233]
[1722334726340,11.88682045,3336.2,3336.1,5.64e-06]
[1722334727174,10.89482045,3336.2,3336.1,5.64e-06]
[1722334727657,13.89224045,3336.2,3336.1,5.64e-06]
[1722334727959,22.74551888,3336.2,3336.1,5.64e-06]
[1722334728155,19.74809888,3336.2,3336.1,5.64e-06]
[1722334728659,16.58909888,3336.2,3336.1,5.64e-06]
[1722334730386,22.74551888,3336.2,3336.1,5.64e-06]
[1722334730751,19.74809888,3336.2,3336.1,5.64e-06]
[1722334732647,19.30442045,3336.2,3336.1,5.64e-06]
[1722334732851,19.74792147,3336.2,3336.1,5.64e-06]